Cogmind - Beta 11 @@@ ROGUE MODE // 2022.04.18 @ 18:38:55 Player: Timm35 Result: Smashed by cave-in Performance ------------- Evolutions (0) 0 Regions Visited (2) 400 Robots Destroyed (7) 35 Value Destroyed (54) 54 Prototype IDs (0) 0 Alien Tech Used (0) 0 Bonus (0) 0 TOTAL SCORE: 489 Bonus ------- None Cogmind --------- Core Integrity 0/250 Matter 281/300 Energy 250/250 System Corruption 14% Temperature Cool (2) Movement Treading (160) Location -10/Mines Parts ------- > --- POWER (1) -------- Ion Engine > --- PROPULSION (2) --- Light Treads Light Treads > --- UTILITY (2) ------ (None) > --- WEAPON (2) ------- Mining Laser > --- INVENTORY (5) ---- Ion Engine Light Ion Engine Small Storage Unit Medium Laser Peak State ------------ > --- POWER ------------ Ion Engine > --- PROPULSION ------- Light Treads Light Treads > --- UTILITY ---------- Improved Terrain Scanner > --- WEAPON ----------- Medium Laser Light Assault Rifle > --- INVENTORY -------- Ion Engine Light Ion Engine Mining Laser Mining Laser [Rating: 8] Favorites ----------- Power Ion Engine Engine Ion Engine Propulsion Light Treads Treads Light Treads Utility Improved Terrain Scanner Device Improved Terrain Scanner Weapon Mining Laser Energy Gun Medium Laser Ballistic Gun Light Assault Rifle Special Weapon Mining Laser Build | -11 -10 -10 ------- Run | Scr Mat Min Slots Evolved . | . . . Power . | . . . Propulsion . | . . . Utility . | . . . Weapon . | . . . Parts Attached 11 | 7 2 2 Power 1 | 1 . . Engine 1 | 1 . . Core . | . . . Reactor . | . . . Propulsion 2 | 2 . . Treads 2 | 2 . . Leg . | . . . Wheel . | . . . Hover . | . . . Flight . | . . . Utility 2 | 1 . 1 Device 2 | 1 . 1 Storage . | . . . Processor . | . . . Hackware . | . . . Protection . | . . . Artifact . | . . . Weapon 6 | 3 2 1 Energy Gun 2 | 2 . . Energy Cannon . | . . . Ballistic Gun 2 | 1 . 1 Ballistic Cannon . | . . . Launcher . | . . . Special Weapon 2 | . 2 . Impact Weapon . | . . . Slashing Weapon . | . . . Piercing Weapon . | . . . Special Melee Weapon . | . . . Unidentified Prototypes . | . . . Parts Lost 5 | 1 2 2 Power . | . . . Propulsion . | . . . Utility 2 | . 1 1 Weapon 3 | 1 1 1 Highest Loss Streak 2 | 1 2 2 To Critical Strikes . | . . . Average Slot Usage (%) 83 | . 84 75 Engine 14 | . 14 14 Treads 28 | . 28 28 Device 12 | . 13 6 Ballistic Gun 1 | . . 12 Special Weapon 26 | . 27 14 Naked Turns . | . . . Heaviest Build 8 | 8 8 8 Greatest Support 40 | 40 40 40 Greatest Overweight (x) . | . . . Average Overweight (x) . | . . . Largest Inventory Capacity 5 | 5 5 5 Average Capacity 5 | 5 5 5 Most Carried 5 | 5 5 5 Average Carried 4 | 2 4 4 Final Capacity 5 | 5 5 5 Final Carried 5 | 5 5 4 Class Distribution -------------------- 100% | Mutant Dominant Class ---------------- Mutant | -10/Materials Mutant | -10/Mines Resources | -11 -10 -10 ----------- Run | Scr Mat Min Matter Collected 287 | 276 . 11 Remotely . | . . . Salvage Created 186 | 161 . 25 Parts 17 | 12 . 5 Haulers Intercepted . | . . . Recyclers Shooed . | . . . Parts Field Recycled . | . . . Retrieved Matter . | . . . Parts Self-Destructed . | . . . Prevented . | . . . Kills | -11 -10 -10 ------- Run | Scr Mat Min Combat Hostiles Destroyed 2 | . . 2 Guns 2 | . . 2 Classes Destroyed 3 | 2 . 1 Tunneler 4 | 4 . . Recycler 1 | 1 . . Swarmer 2 | . . 2 Best Kill Streak 4 | 4 . 2 Combat Bots Only 2 | . . 2 Max Kills in Single Turn 2 | 2 . 1 Gunslinging . | . . . Exploded . | . . . Melee . | . . . Uniques/NPCs Destroyed . | . . . Combat | -11 -10 -10 -------- Run | Scr Mat Min Damage Taken 802 | 54 399 349 Core 261 | . 151 110 Absorbed by Shields . | . . . Core Remaining (%) 100 | 100 . . Volleys Fired 24 | 13 3 8 Largest 2 | 2 2 1 Hottest 200 | 70 200 100 Shots Fired 36 | 23 5 8 Gun 27 | 23 . 4 Cannon . | . . . Launcher . | . . . Special 9 | . 5 4 Kinetic 15 | 11 . 4 Thermal 14 | 5 5 4 Explosive . | . . . Electromagnetic 7 | 7 . . Robot Hit Streak 6 | 6 . 1 Robot Miss Streak 2 | 2 . 2 Penetration Max . | . . . Secondary Targets . | . . . Shots Hit Robots 18 | 16 . 2 Core Hits 9 | 7 . 2 Critical Kills . | . . . Critical Parts Destroyed . | . . . Critical Strikes . | . . . Melee Attacks . | . . . Impact . | . . . Slashing . | . . . Piercing . | . . . Sneak Attacks . | . . . Combat Hostiles . | . . . Follow-up Attacks . | . . . Damage Inflicted 329 | 311 . 18 Guns 183 | 165 . 18 Cannons . | . . . Explosions 146 | 146 . . Melee . | . . . Ramming . | . . . Kinetic 81 | 63 . 18 Thermal 184 | 184 . . Explosive . | . . . Electromagnetic 64 | 64 . . Impact . | . . . Slashing . | . . . Piercing . | . . . Highest Corruption 7 | . 7 7 Average Corruption 7 | . 7 7 Corruption Purged . | . . . Corruption Blocked . | . . . Effects 3 | . . 3 Message Errors 1 | . . 1 Matter Fused 1 | . . 1 Energy Discharges 1 | . . 1 Overload Shots . | . . . Overflow Damage 16 | 16 . . Projectiles . | . . . Explosions 16 | 16 . . Melee . | . . . Knockbacks . | . . . Impact . | . . . Kinetic . | . . . Secondary . | . . . Self-Inflicted Damage 54 | 54 . . Shots 2 | 2 . . Rammed . | . . . Targets Rammed . | . . . Kicked . | . . . Crushed . | . . . Highest Temperature 76 | 70 76 40 Average Temperature 26 | 24 37 15 Received Heat Transfer 18 | . 18 . Siege Activations . | . . . Robots Corrupted . | . . . Combat Hostiles . | . . . Parts Fried 2 | 2 . . Impact Corruptions . | . . . Robots Melted . | . . . Combat Hostiles . | . . . Parts Melted 1 | 1 . . Heat Transferred 311 | 311 . . Parts Sabotaged . | . . . Parts Stolen . | . . . Parts Stripped . | . . . Power Chain Reactions 2 | 2 . . Missiles Intercepted . | . . . Alert | -11 -10 -10 ------- Run | Scr Mat Min Peak Influence 59 | 15 9 59 Initial 9 | . 9 . Average 10 | 8 7 39 Maximum Alert Level . | . . . Low Security (%) 100 | 100 100 100 Level 1 . | . . . Level 2 . | . . . Level 3 . | . . . Level 4 . | . . . Level 5 . | . . . High Security . | . . . Max Security . | . . . Squads Dispatched . | . . . Investigation . | . . . Extermination . | . . . Reinforcement . | . . . Assault . | . . . Garrison . | . . . Intercept . | . . . Searches Triggered . | . . . Construction Impeded . | . . . Haulers Reinforced . | . . . Active Scanning Responses . | . . . Cargo Convoy Interrupts . | . . . Stealth | -11 -10 -10 --------- Run | Scr Mat Min Distress Signals . | . . . Communications Jammed . | . . . Distress Signals . | . . . Times Spotted 4 | . 1 3 Peak Tracking Total 3 | . 2 3 Tactical Retreats . | . . . Traps | -11 -10 -10 ------- Run | Scr Mat Min Traps Triggered . | . . . Indirectly . | . . . Trap Hack Attempts . | . . . Triggered . | . . . Disarmed . | . . . Reprogrammed . | . . . Reused . | . . . Traps Extracted . | . . . Installed . | . . . Triggered . | . . . Machines | -11 -10 -10 ---------- Run | Scr Mat Min Machines Disabled . | . . . Max in Single Turn . | . . . Machines Sabotaged . | . . . Garrisons Compromised . | . . . Overloaded Fab Kills . | . . . Hacking | -11 -10 -10 --------- Run | Scr Mat Min Machines Accessed . | . . . Terminals . | . . . Fabricators . | . . . Repair Stations . | . . . Recycling Units . | . . . Scanalyzers . | . . . Garrison Access . | . . . Total Hacks . | . . . Successful . | . . . Failed . | . . . Catastrophic . | . . . Database Lockouts . | . . . Manual . | . . . Terminals . | . . . Fabricators . | . . . Repair Stations . | . . . Recycling Units . | . . . Scanalyzers . | . . . Garrison Access . | . . . Terminal Hacks . | . . . Fabricator Hacks . | . . . Repair Station Hacks . | . . . Recycling Unit Hacks . | . . . Scanalyzer . | . . . Garrison Access Hacks . | . . . Unauthorized Hacks . | . . . Terminals . | . . . Fabricators . | . . . Repair Stations . | . . . Recycling Units . | . . . Scanalyzers . | . . . Garrison Access . | . . . Data Cores Recovered . | . . . Used . | . . . Hacking Detections . | . . . Full Trace Events . | . . . Feedback Events . | . . . Feedback Blocked . | . . . Robot Schematics Acquired . | . . . Robots Built . | . . . Authchips . | . . . Time . | . . . Total Robot Build Rating . | . . . Part Schematics Acquired . | . . . Parts Built . | . . . Authchips . | . . . Time . | . . . Total Part Build Rating . | . . . Parts Repaired . | . . . Time . | . . . Parts Recycled . | . . . Recycled Matter . | . . . Retrieved Matter . | . . . Retrieved Components . | . . . Parts Scanalyzed . | . . . Part Schematics Acquired . | . . . Parts Damaged . | . . . Bothacking | -11 -10 -10 ------------ Run | Scr Mat Min Used RIF Installer . | . . . Robots Hacked . | . . . Non-combat . | . . . Combat . | . . . Robot Hacks Applied . | . . . Relay Couplers Released . | . . . Fabnet Peak Effective % . | . . . Robots Rewired . | . . . Allies Hacked . | . . . Hacks Repelled . | . . . Allies | -11 -10 -10 -------- Run | Scr Mat Min Total Allies . | . . . Largest Group . | . . . Highest-Rated Group . | . . . Highest-Rated Ally . | . . . Total Orders . | . . . Ally Attacks . | . . . Total Damage . | . . . Kills . | . . . Allies Corrupted . | . . . Allies Melted . | . . . Intel | -11 -10 -10 ------- Run | Scr Mat Min Robot Analysis Total . | . . . Derelict Logs Recovered . | . . . Drone Launches . | . . . Drone Recoveries . | . . . Exploration | -11 -10 -10 ------------- Run | Scr Mat Min Turns Passed 721 | 166 490 65 Spaces Moved 120 | 76 24 20 Core 6 | 6 . . Treads 114 | 70 24 20 Legs . | . . . Wheels . | . . . Hover . | . . . Flight . | . . . Fastest Speed 50 | 50 160 160 Average Speed 154 | 151 160 160 Slowest Speed 160 | 160 160 160 Overloaded Moves . | . . . Propulsion Burnouts . | . . . Robots Hopped . | . . . Cave-ins Triggered 2 | . 1 1 Exploration Rate (%) 6 | 3 9 8 Regions Visited 2 Branch Regions 1 Pre-discovered Areas . | . . . Known Exits Taken . | . . . Unknown Exits Taken 2 | 1 1 . Scrap Searched . | . . . Spaces Dug 8 | . 5 3 Terrain Destroyed 12 | 3 5 4 Melee . | . . . Projectile 9 | . 5 4 AOE 3 | 3 . . Terrain Rammed . | . . . Walls Destroyed . | . . . Machines Disabled . | . . . Actions | -11 -10 -10 --------- Run | Scr Mat Min Total 606 | 107 461 38 Wait 438 | . 431 7 Move 118 | 75 23 20 Hop . | . . . Pick Up 13 | 11 1 1 Fast Attach . | . . . Attach 11 | 7 2 2 Detach 2 | 1 1 . Swap . | . . . Drop . | . . . Fire 24 | 13 3 8 Melee . | . . . Ram . | . . . Kick . | . . . Crush . | . . . Escape Stasis . | . . . Rewire . | . . . Trap . | . . . Miscellaneous . | . . . Route ------- -11/Scrapyard -10/Materials -10/Mines History --------- Turn | Location | Event 44 | -11/Scrapyard | Discovered new exit (range 15) 167 | -11/Scrapyard | Entered Materials 304 | -10/Materials | Build established: Mutant 641 | -10/Materials | Crushed by falling debris 641 | -10/Materials | Core integrity fell below 50% 650 | -10/Materials | Discovered new exit (range 5) 657 | -10/Materials | Entered Mines 723 | -10/Mines | Crushed by falling debris 723 | -10/Mines | Smashed by cave-in Last Messages --------------- 00641_ Imp. Terrain Scanner destroyed. 00641_ System corrupted by crushing effect (+3). 00641_ Mining Laser destroyed. 00641_ System corrupted by crushing effect (+4). 00650_ EXIT=FOUND LOCATION=UNKNOWN GOAL=ESCAPE 00658_ S-10 Pest destroyed. 00661_ J0TKA#OVW 1C=NY 00678_ Acquired 11 matter. 00680_ System corrupted: Energy discharge (-67). 00693_ Acquired Sensor Array. 00701_ System corrupted: Matter fused (-6). 00723_ The unstable cave ceiling collapses. 00723_ Crushed by falling debris. 00723_ Sensor Array destroyed. 00723_ System corrupted by crushing effect (+3). 00723_ Lgt. Assault Rifle destroyed. 00723_ System corrupted by crushing effect (+4). Map ----- +----------------------------------------------------+ | ???????????????????????????????????????????? | | ???????????????????????????????????????????? | | ???????????????????????????????????????????? | | ???????????????????????????????????????????? | | ???????????????????????????????????????????? | | ???????????????????????????????????????????? | | ???????????????????????????????????????????? | | ???????????????????????????????????????????? | | ???????????????????????????????????????????? | | ???????????????????????????????????????????? | | ???????????????????????????????????????????? | | ???????????????????????????????????????????? | | ???????????????????????????????????????????? | | ???????????????????????????????????????????? | | ???????????????????????????????????????????? | | ???????????????????????????????????????????? | | ???????????????????????????????????????????? | | ???????????????????????????????????????????? | | ???????????????????????????????????????????? | | ???????????????????????????????????????????? | | ???????????????????????????????????????????? | | ???????????????????????????????????????????? | | ???????????????????????????????????????????? | | ??????????????????###??????????????????????? | | ????###???????????# ##?????????????????????? | | ???## ####??????##@;#?????????????????????? | | ???# ##???## ;#?????????????????????? | | ???# #####! #?????????????????????? | | ????# #?????????????????????? | | ?????# ##?????????????????????? | | ??????#### ###??????????????????????? | | ?????????## ###????????????????????????? | | ??????????# ##??????????????????????????? | | ??????????# !*=#???????????????????????????? | | ??????????## =##???????????????????????????? | | ???????????##=#????????????????????????????? | | ????????????#%#????????????????????????????? | | ?????????####=#????????????????????????????? | | ????????## ##???????????????????????????? | | ????????# #???????????????????????????? | | ????????# #???????????????????????????? | | ????????##*% #???????????????????????????? | | ?????????##= #???????????????????????????? | | ??????????### #???????????????????????????? | | ????????????# #???????????????????????????? | | ????????????# #???????????????????????????? | | ????????????? ???????????????????????????? | | ????????????? ??????????????????????????? | | ????????????? ??????????????????????????? | | ????????????? ?????????????????????????? | +----------------------------------------------------+ Best States ------------- Heat Dissipation 25 Energy Generation 10 Energy Capacity 250 Matter Stores 290 Matter Capacity 300 Sight Range 16 Robot Scan Range 14 Terrain Scan Range 16 Terrain Scan Density 10 Evasion (%) 40 Recoil Reduction 2 Item Schematics ----------------- None Robot Schematics ------------------ None Fabricated ------------ Nothing Alien Tech Used ----------------- None Achievements -------------- None Challenges ------------ None Game ------ Seed AntigravFlakProjector Manual? 0 Play Time 00:05:25 Cumulative 5.6 hours Start 2022.04.18 @ 18:15:50 End 2022.04.18 @ 18:38:55 Sessions 1 Manual Loads 0 Difficulty Rogue Special Mode None Game No. 15 Rogue 15 Adventurer 0 Explorer 0 Win Type - Total 0 Types 0/0/0/0/0/0/0/0/0 Lore% 3 Gallery% 9 Achievement% 8 Wizard Run 0 Options --------- ASCII 0 Keyboard 0 Movement Mouse Keybinds 0 Fullscreen 1 Font 18/X11Bold Map View 76x50 Tactical HUD 1 Map Filters NONE Filters NONE Steam 1 RUN: 4837e560-8ed9-445d-b2c4-a5542d3bf2c9